fUSD/lending_fUSD_20260111
["ID","MTS","AMOUNT","RATE_DAILY","PERIOD"]
[401368039,1768159844314,-468.77065485,0.00017273,2]
[401368041,1768159844324,-150.0,0.0001728,2]
[401368044,1768159844334,-468.77065485,0.00017291,2]
[401368046,1768159844344,-150.0,0.00017291,2]
[401368048,1768159844355,-74500.0,0.000173,6]
[401368050,1768159844368,-150.0,0.00017308,2]
[401368052,1768159844377,-468.77065485,0.00017309,2]
[401368054,1768159844387,-468.77065485,0.00017327,2]
[401368056,1768159844397,-150.0,0.00017345,2]
[401368058,1768159844407,-150.0,0.00017345,2]
[401368060,1768159844417,-468.77065485,0.00017345,2]
[401368062,1768159844427,-162.0,0.0001736,2]
[401368065,1768159844437,-468.77065485,0.00017364,2]
[401368066,1768159844447,-334.10877891,0.00017375,2]
[401368068,1768159844457,-4225.8,0.00017378,2]
[401368069,1768159844467,-468.77065485,0.00017382,2]
[401368070,1768159844477,-150.0,0.000174,2]
[401368071,1768159844486,-468.77065485,0.000174,2]
[401368072,1768159844496,-150.0,0.000174,2]
[401368073,1768159844506,-93100.0,0.000174,6]
[401368074,1768159844516,-468.77065485,0.00017418,2]
[401368075,1768159844527,-189.72,0.00017429,2]
[401368077,1768159844536,-4225.8,0.00017435,2]
[401368079,1768159844546,-468.77065485,0.00017436,2]
[401368081,1768159844556,-150.0,0.00017446,2]
[401368083,1768159844566,-468.77065485,0.00017455,2]
[401368085,1768159844575,-468.77065485,0.00017473,2]
[401368087,1768159844585,-158.9254365,0.00017479,2]
[401368089,1768159844594,-150.0,0.00017486,2]
[401368091,1768159844603,-150.0,0.00017486,2]
[401368093,1768159844613,-1589.41,0.00017489,2]
[401368095,1768159844623,-468.77065485,0.00017491,2]
[401368097,1768159844632,-4225.8,0.00017491,2]
[401368099,1768159844641,-2000.0,0.000175,2]
[401368101,1768159844651,-1601.60083457,0.000175,2]
[401368103,1768159844660,-18600.0,0.000175,6]
[401368105,1768159844670,-150.0,0.00017509,2]
[401368107,1768159844680,-150.0,0.00017509,2]
[401368109,1768159844689,-468.77065485,0.00017509,2]
[401368111,1768159844699,-468.77065485,0.00017527,2]
[401368113,1768159844709,-211.20104298,0.00017534,2]
[401368115,1768159844719,-168.0,0.00017536,2]
[401368118,1768159844728,-10000.0,0.0001754,2]
[401368120,1768159844738,-468.77065485,0.00017545,2]
[401368122,1768159844747,-14914.92833255,0.00017546,2]
[401368124,1768159844761,-4225.8,0.00017548,2]
[401368126,1768159844772,-587.0,0.00017557,2]
[401368128,1768159844781,-468.77065485,0.00017564,2]
[401368130,1768159844791,-468.77065485,0.00017582,2]
[401368132,1768159844801,-150.0,0.00017585,2]
[401368134,1768159844810,-468.77065485,0.000176,2]
[401368136,1768159844819,-150.0,0.000176,2]
[401368138,1768159844828,-1000.0,0.000176,2]
[401368140,1768159844838,-18600.0,0.000176,6]
[401368142,1768159844847,-4225.8,0.00017604,2]
[401368144,1768159844856,-468.77065485,0.00017618,2]
[401368146,1768159844866,-918.0,0.00017619,2]
[401368148,1768159844876,-500.91201932,0.00017621,2]
[401368150,1768159844886,-1000.0,0.00017621,2]
[401368152,1768159844896,-500.66892907,0.00017621,2]
[401368154,1768159844905,-500.73774285,0.00017621,2]
[401368156,1768159844915,-1000.0,0.00017621,2]
[401368158,1768159844924,-500.78603367,0.00017621,2]
[401368160,1768159844934,-1000.0,0.00017621,2]
[401368163,1768159844946,-501.45467854,0.00017621,2]
[401368165,1768159844956,-501.18596631,0.00017621,2]
[401368167,1768159844969,-500.88678731,0.00017621,2]
[401368169,1768159844978,-169.26261672,0.00017621,2]
[401368171,1768159844987,-1000.0,0.00017621,2]
[401368173,1768159844997,-1001.71787449,0.00017621,2]
[401368175,1768159845007,-1000.0,0.00017621,2]
[401368177,1768159845020,-1003.68229257,0.00017621,2]
[401368179,1768159845030,-1000.0,0.00017621,2]
[401368181,1768159845040,-1001.80765562,0.00017621,2]
[401368183,1768159845050,-835.02912149,0.00017621,2]
[401368185,1768159845059,-312.9434502,0.00017621,2]
[401368187,1768159845069,-1000.0,0.00017621,2]
[401368189,1768159845078,-1000.0,0.00017621,2]
[401368191,1768159845087,-414.52858729,0.00017621,2]
[401368193,1768159845097,-468.77065485,0.00017636,2]
[401368195,1768159845106,-168.0,0.00017638,2]
[401368197,1768159845115,-150.0,0.0001764,2]
[401368199,1768159845125,-3755.81126593,0.0001764,2]
[401368201,1768159845135,-574.12855637,0.00017647,2]
[401368203,1768159845144,-468.77065485,0.00017655,2]
[401368205,1768159845154,-168.0,0.00017658,2]
[401368207,1768159845163,-4225.8,0.00017661,2]
[401368209,1768159845174,-150.0,0.00017673,2]
[401368211,1768159845183,-150.0,0.00017673,2]
[401368213,1768159845192,-468.77065485,0.00017673,2]
[401368215,1768159845201,-468.77065485,0.00017691,2]
[401368217,1768159845211,-150.0,0.000177,2]
[401368219,1768159845220,-780.16040122,0.000177,2]
[401368222,1768159845230,-18600.0,0.000177,6]
[401368224,1768159845240,-1000.0,0.000177,2]
[401368226,1768159845249,-468.77065485,0.00017709,2]
[401368228,1768159845259,-4225.8,0.00017717,2]
[401368230,1768159845269,-2351.0,0.00017723,2]
[401368232,1768159845279,-150.0,0.00017723,2]
[401368234,1768159845290,-468.77065485,0.00017727,2]
[401368236,1768159845300,-150.0,0.00017743,2]
[401368238,1768159845309,-150.0,0.00017743,2]
[401368240,1768159845319,-468.77065485,0.00017745,2]
[401368242,1768159845328,-1589.49539638,0.00017763,2]
[401368244,1768159845337,-468.77065485,0.00017764,2]
[401368246,1768159845347,-330.14190427,0.00017774,2]
[401368249,1768159845366,-4225.8,0.00017774,2]
[401368251,1768159845377,-468.77065485,0.00017782,2]
[401368253,1768159845388,-468.77065485,0.000178,2]
[401368255,1768159845398,-150.0,0.000178,2]
[401368258,1768159845409,-14440.20798762,0.000178,2]
[401368260,1768159845419,-18600.0,0.000178,6]
[401368262,1768159845429,-468.77065485,0.00017818,2]
[401368264,1768159845438,-2201.92484839,0.0001783,2]
[401368266,1768159845448,-4225.8,0.0001783,2]
[401368268,1768159845458,-150.0,0.00017836,2]
[401368270,1768159845467,-150.0,0.00017836,2]
[401368272,1768159845478,-468.77065485,0.00017836,2]
[401368274,1768159845488,-330.14190427,0.00017837,2]
[401368276,1768159845498,-168.0,0.00017844,2]
[401368278,1768159845508,-468.77065485,0.00017855,2]
[401368280,1768159845518,-200.0,0.00017855,2]
[401368283,1768159845528,-200.0,0.00017856,2]
[401368285,1768159845538,-200.0,0.00017856,2]
[401368287,1768159845549,-150.0,0.00017862,2]
[401368289,1768159845559,-25000.0,0.00017865,3]
[401368291,1768159845568,-468.77065485,0.00017873,2]
[401368293,1768159845579,-25000.0,0.00017874,3]
[401368295,1768159845589,-189.72,0.00017875,2]
[401368297,1768159845599,-25000.0,0.00017882,3]
[401368299,1768159845608,-4225.8,0.00017887,2]
[401368301,1768159845618,-468.77065485,0.00017891,2]
[401368303,1768159845627,-25000.0,0.00017891,3]
[401368305,1768159845637,-590.06318863,0.00017898,2]
[401368307,1768159845647,-590.06318863,0.00017899,2]
[401368309,1768159845656,-590.06318863,0.00017899,2]
[401368311,1768159845666,-25000.0,0.000179,3]
[401368313,1768159845675,-24323.20926535,0.000179,3]
[401368315,1768159845685,-334.10877891,0.000179,2]
[401368317,1768159845695,-1000.0,0.000179,2]
[401368319,1768159845705,-330.14190427,0.000179,2]
[401368322,1768159845715,-19018.0,0.000179,6]
[401368324,1768159845725,-14914.92833255,0.000179,2]
[401368326,1768159845736,-791.45935323,0.000179,3]
[401368328,1768159845745,-590.06318863,0.000179,2]
[401368330,1768159845755,-2094.44971826,0.000179,2]
[401368332,1768159845764,-982.92347679,0.000179,2]
[401368334,1768159845775,-294.7401385,0.000179,2]
[401368336,1768159845784,-982.92347669,0.000179,2]
[401368338,1768159845795,-982.92347669,0.000179,2]
[401368340,1768159845805,-982.92347669,0.000179,2]
[401368342,1768159845814,-982.92347669,0.000179,2]
[401368344,1768159845824,-982.92347669,0.000179,2]
[401368346,1768159845834,-982.92347669,0.000179,2]
[401368348,1768159845844,-982.92347669,0.000179,2]
[401368350,1768159845853,-982.92347669,0.000179,2]
[401368352,1768159845863,-500.0,0.000179,2]
[401368354,1768159845872,-500.0,0.000179,2]
[401368356,1768159845881,-500.0,0.000179,2]
[401368358,1768159845891,-500.0,0.000179,2]
[401368360,1768159845900,-482.9428224,0.000179,2]
[401368362,1768159845909,-8888.0,0.000179,2]
[401368364,1768159845919,-189.71466927,0.00017906,2]
[401368366,1768159845929,-468.77065485,0.00017909,2]
[401368368,1768159845939,-468.77065485,0.00017927,2]
[401368370,1768159845948,-168.0,0.00017937,2]
[401368372,1768159845960,-4225.8,0.00017943,2]
[401368374,1768159845971,-468.77065485,0.00017945,2]
[401368376,1768159845979,-468.77065485,0.00017964,2]
[401368378,1768159845987,-28016.0,0.00017973,2]
[401368380,1768159845997,-500.0,0.00017973,2]
[401368382,1768159846008,-380.05360747,0.00017973,2]
[401368385,1768159846017,-500.0,0.00017973,2]
[401368388,1768159846027,-500.0,0.00017973,2]
[401368390,1768159846040,-500.0,0.00017973,2]
[401368392,1768159846049,-500.0,0.00017973,2]
[401368393,1768159846059,-500.0,0.00017973,2]
[401368394,1768159846068,-500.0,0.00017973,2]
[401368395,1768159846077,-498.39272947,0.00017973,2]
[401368396,1768159846087,-500.0,0.00017973,2]
[401368397,1768159846097,-500.0,0.00017973,2]
[401368398,1768159846107,-500.0,0.00017973,2]
[401368399,1768159846116,-500.0,0.00017973,2]
[401368401,1768159846126,-500.0,0.00017973,2]
[401368403,1768159846136,-500.0,0.00017973,2]
[401368405,1768159846146,-500.0,0.00017973,2]
[401368407,1768159846155,-500.0,0.00017973,2]
[401368409,1768159846164,-500.0,0.00017973,2]
[401368411,1768159846174,-500.0,0.00017973,2]
[401368413,1768159846184,-500.0,0.00017973,2]
[401368415,1768159846193,-500.0,0.00017973,2]
[401368417,1768159846203,-500.0,0.00017973,2]
[401368419,1768159846213,-468.77065485,0.00017982,2]
[401368421,1768159846223,-500.0,0.00017982,2]
[401368423,1768159846232,-1504.84669614,0.0001799,2]
[401368424,1768159846241,-150.0,0.0001799,2]
[401368425,1768159846251,-936.49962306,0.0001799,2]
[401368426,1768159846261,-936.49962306,0.0001799,2]
[401368427,1768159846271,-204.2861563,0.00017995,2]
[401368428,1768159846280,-251726.0448053,0.00017997,2]
[401368429,1768159846290,-9350.3804942,0.00017997,2]
[401368430,1768159846301,-185467.5469531,0.00017997,2]
[401368431,1768159846311,-4106.764814,0.00017997,2]
[401368432,1768159846320,-153.803305,0.00017997,2]
[401368433,1768159846330,-4106.764814,0.00017997,2]
[401368434,1768159846340,-151.0,0.00017997,2]
[401368435,1768159846350,-391.846549,0.00017997,2]
[401368436,1768159846359,-4106.764814,0.00017997,2]
[401368437,1768159846369,-151.0,0.00017997,2]
[401368438,1768159846379,-391.846549,0.00017997,2]
[401368439,1768159846389,-4106.764814,0.00017997,2]
[401368440,1768159846399,-391.846549,0.00017997,2]
[401368441,1768159846408,-391.846549,0.00017997,2]
[401368442,1768159846417,-151.0,0.00017997,2]
[401368444,1768159846428,-151.0,0.00017997,2]
[401368446,1768159846437,-282.28364,0.00017997,2]
[401368448,1768159846447,-151.0,0.00017997,2]
[401368451,1768159846457,-151.0,0.00017997,2]
[401368453,1768159846466,-151.0,0.00017997,2]
[401368455,1768159846476,-465.445525,0.00017997,2]
[401368457,1768159846486,-282.28364,0.00017997,2]
[401368459,1768159846496,-151.0,0.00017997,2]
[401368460,1768159846506,-282.28364,0.00017997,2]
[401368461,1768159846517,-151.0,0.00017997,2]
[401368462,1768159846526,-465.445525,0.00017997,2]
[401368463,1768159846536,-282.28364,0.00017997,2]
[401368464,1768159846545,-151.0,0.00017997,2]
[401368465,1768159846555,-465.445525,0.00017997,2]
[401368466,1768159846564,-151.0,0.00017997,2]
[401368467,1768159846574,-1244.569333,0.00017997,2]
[401368468,1768159846583,-623.001243,0.00017997,2]
[401368469,1768159846593,-465.445525,0.00017997,2]
[401368470,1768159846602,-1244.569333,0.00017997,2]
[401368471,1768159846612,-623.001243,0.00017997,2]
[401368472,1768159846621,-151.0,0.00017997,2]
[401368473,1768159846631,-623.001243,0.00017997,2]
[401368474,1768159846640,-151.0,0.00017997,2]
[401368475,1768159846650,-623.001243,0.00017997,2]
[401368476,1768159846659,-151.0,0.00017997,2]
[401368477,1768159846669,-1244.569333,0.00017997,2]
[401368479,1768159846679,-203.441097,0.00017997,2]
[401368481,1768159846688,-151.0,0.00017997,2]
[401368483,1768159846698,-151.0,0.00017997,2]
[401368486,1768159846708,-1244.569333,0.00017997,2]
[401368488,1768159846717,-252.711601,0.00017997,2]
[401368490,1768159846727,-1580.779284,0.00017997,2]
[401368492,1768159846736,-151.0,0.00017997,2]
[401368494,1768159846746,-1580.779284,0.00017997,2]
[401368496,1768159846755,-1580.779284,0.00017997,2]
[401368498,1768159846764,-151.0,0.00017997,2]
[401368499,1768159846774,-151.0,0.00017997,2]
[401368500,1768159846783,-1580.779284,0.00017997,2]
[401368501,1768159846792,-151.0,0.00017997,2]
[401368502,1768159846802,-169.229302,0.00017997,2]
[401368503,1768159846811,-754.789807,0.00017997,2]
[401368504,1768159846821,-754.789807,0.00017997,2]
[401368505,1768159846830,-754.789807,0.00017997,2]
[401368506,1768159846840,-754.789807,0.00017997,2]
[401368507,1768159846849,-170.500208,0.00017997,2]
[401368508,1768159846858,-170.500208,0.00017997,2]
[401368509,1768159846868,-170.500208,0.00017997,2]
[401368510,1768159846877,-151.0,0.00017997,2]
[401368511,1768159846887,-170.500208,0.00017997,2]
[401368512,1768159846897,-151.0,0.00017997,2]
[401368513,1768159846907,-151.0,0.00017997,2]
[401368514,1768159846916,-189.479204,0.00017997,2]
[401368515,1768159846925,-151.0,0.00017997,2]
[401368516,1768159846935,-151.0,0.00017997,2]
[401368517,1768159846945,-438.857825,0.00017997,2]
[401368518,1768159846954,-151.0,0.00017997,2]
[401368519,1768159846966,-151.0,0.00017997,2]
[401368520,1768159846976,-438.857825,0.00017997,2]
[401368521,1768159846989,-151.0,0.00017997,2]
[401368522,1768159846999,-438.857825,0.00017997,2]
[401368523,1768159847010,-438.857825,0.00017997,2]
[401368524,1768159847020,-151.0,0.00017997,2]
[401368525,1768159847030,-151.0,0.00017997,2]
[401368526,1768159847043,-151.0,0.00017997,2]
[401368527,1768159847053,-151.0,0.00017997,2]
[401368528,1768159847062,-151.0,0.00017997,2]
[401368529,1768159847345,-151.0,0.00017997,2]
[401368530,1768159847355,-1089.522056,0.00017997,2]
[401368531,1768159847366,-906.513466,0.00017997,2]
[401368532,1768159847375,-332.214435,0.00017997,2]
[401368533,1768159847384,-506.865865,0.00017997,2]
[401368534,1768159847394,-184.371786,0.00017997,2]
[401368535,1768159847404,-1089.522056,0.00017997,2]
[401368536,1768159847414,-906.513466,0.00017997,2]
[401368537,1768159847424,-506.865865,0.00017997,2]
[401368538,1768159847433,-906.513466,0.00017997,2]
[401368539,1768159847443,-1089.522056,0.00017997,2]
[401368540,1768159847452,-151.0,0.00017997,2]
[401368541,1768159847462,-151.0,0.00017997,2]
[401368542,1768159847471,-165.117805,0.00017997,2]
[401368543,1768159847481,-151.0,0.00017997,2]
[401368544,1768159847491,-506.865865,0.00017997,2]
[401368545,1768159847500,-1089.522056,0.00017997,2]
[401368546,1768159847510,-906.513466,0.00017997,2]
[401368547,1768159847520,-332.214435,0.00017997,2]
[401368548,1768159847531,-506.865865,0.00017997,2]
[401368549,1768159847540,-151.0,0.00017997,2]
[401368550,1768159847550,-573.970445,0.00017997,2]
[401368551,1768159847559,-580.109053,0.00017997,2]
[401368552,1768159847568,-332.214435,0.00017997,2]
[401368553,1768159847578,-151.0,0.00017997,2]
[401368554,1768159847588,-332.214435,0.00017997,2]
[401368555,1768159847598,-573.970445,0.00017997,2]
[401368556,1768159847607,-173.624464,0.00017997,2]
[401368557,1768159847617,-580.109053,0.00017997,2]
[401368558,1768159847626,-573.970445,0.00017997,2]
[401368559,1768159847637,-173.624464,0.00017997,2]
[401368560,1768159847648,-151.0,0.00017997,2]
[401368561,1768159847658,-573.970445,0.00017997,2]
[401368562,1768159847667,-580.109053,0.00017997,2]
[401368563,1768159847677,-151.0,0.00017997,2]
[401368564,1768159847687,-173.624464,0.00017997,2]
[401368565,1768159847697,-161.879998,0.00017997,2]
[401368566,1768159847707,-580.109053,0.00017997,2]
[401368567,1768159847716,-165.572138,0.00017997,2]
[401368568,1768159847725,-151.0,0.00017997,2]
[401368569,1768159847735,-173.624464,0.00017997,2]
[401368570,1768159847744,-151.0,0.00017997,2]
[401368571,1768159847753,-165.572138,0.00017997,2]
[401368572,1768159847763,-1965.222408,0.00017997,2]
[401368573,1768159847772,-196.746434,0.00017997,2]
[401368574,1768159847783,-165.572138,0.00017997,2]
[401368575,1768159847793,-1965.222408,0.00017997,2]
[401368576,1768159847803,-196.746434,0.00017997,2]
[401368577,1768159847812,-165.572138,0.00017997,2]
[401368578,1768159847821,-1965.222408,0.00017997,2]
[401368579,1768159847831,-196.746434,0.00017997,2]
[401368580,1768159847840,-921.834081,0.00017997,2]
[401368581,1768159847851,-196.746434,0.00017997,2]
[401368582,1768159847861,-1965.222408,0.00017997,2]
[401368583,1768159847871,-2235.751841,0.00017997,2]
[401368584,1768159847881,-1765.956881,0.00017997,2]
[401368585,1768159847890,-175.360482,0.00017997,2]
[401368586,1768159847899,-921.834081,0.00017997,2]
[401368587,1768159847908,-2235.751841,0.00017997,2]
[401368588,1768159847918,-1765.956881,0.00017997,2]
[401368589,1768159847927,-202.895955,0.00017997,2]
[401368590,1768159847937,-921.834081,0.00017997,2]
[401368591,1768159847946,-2235.751841,0.00017997,2]
[401368592,1768159847956,-1765.956881,0.00017997,2]
[401368593,1768159847972,-921.834081,0.00017997,2]
[401368594,1768159847982,-1765.956881,0.00017997,2]
[401368595,1768159847992,-2235.751841,0.00017997,2]
[401368596,1768159848003,-542.914314,0.00017997,2]
[401368597,1768159848016,-542.914314,0.00017997,2]
[401368598,1768159848027,-542.914314,0.00017997,2]
[401368599,1768159848041,-542.914314,0.00017997,2]
[401368600,1768159848051,-166.9455236,0.00017999,2]
[401368601,1768159848061,-300.0,0.00017999,2]
[401368602,1768159848071,-300.0,0.00017999,2]
[401368603,1768159848085,-300.0,0.00017999,2]
[401368604,1768159848095,-6474.7929339,0.00017999,2]
[401368605,1768159848105,-300.0,0.00017999,2]
[401368606,1768159848115,-673.04563665,0.00017999,2]
[401368607,1768159848127,-150.0,0.00018,2]
[401368608,1768159848138,-150.0,0.00018,2]
[401368609,1768159848148,-150.0,0.00018,2]
[401368610,1768159848157,-468.77065485,0.00018,2]
[401368611,1768159848167,-150.0,0.00018,2]
[401368612,1768159848178,-150.0,0.00018,2]
[401368613,1768159848188,-150.0,0.00018,2]
[401368614,1768159848199,-150.0,0.00018,2]
[401368615,1768159848211,-150.0,0.00018,2]
[401368616,1768159848220,-150.0,0.00018,2]
[401368617,1768159848230,-150.0,0.00018,2]
[401368618,1768159848242,-150.0,0.00018,2]
[401368619,1768159848253,-2351895.68543087,0.00018,2]
[401368620,1768159849120,-1.7e-07,0.00018,2]
[401368621,1768159849410,-438.0,0.000179,2]
[401368622,1768159849421,-544.92347669,0.000179,2]
[401368623,1768159849431,-91.052597,0.00018,2]
[401368624,1768159849442,-1130.776072,0.00018,2]
[401368625,1768159849482,-151.0,0.0001553,2]
[401368626,1768159849492,-151.0,0.0001553,2]
[401368627,1768159849501,-9668.93987114,0.00018,2]
[401368628,1768159849513,-919692.96319674,0.00018,2]
[401368629,1768159849526,-809.74516329,0.00018,2]
[401368630,1768159849570,-2226.12780612,0.00018,2]
[401368631,1768159849584,-12030.29575739,0.00018,2]
[401368632,1768159849595,-312.5,0.00018,2]
[401368633,1768159849606,-11947.57819722,0.00018,2]
[401368634,1768159849622,-68854.39114272,0.00018,2]
[401368635,1768159849690,-1190.19780349,0.00018,2]
[401368636,1768159849701,-1912.77047311,0.00018,2]
[401368637,1768159900634,1000.0,0.00014548,2]
[401368640,1768160102458,298.2,0.00027397,120]
[401368641,1768160150891,-150.0,0.00014491,2]
[401368642,1768160150916,-272.90352069,0.00014547,2]
[401368643,1768160153883,-27.09647931,0.00014547,2]
[401368644,1768160153908,-222.0,0.00014547,2]
[401368645,1768160153931,-477.18286113,0.00014547,2]
[401368646,1768160155340,-168.84310972,0.00014547,2]
[401368647,1768160159132,-221.1910972,0.00014547,2]
[401368648,1768160160661,-155.04733483,0.00014547,2]
[401368649,1768160163078,-177.73559712,0.00014547,2]
[401368650,1768160163100,-69.53618147,0.00014547,2]
[401368651,1768160166165,-151.98869862,0.00014547,2]
[401368652,1768160168004,-64.47511991,0.00014547,2]
[401368653,1768160168026,-300.0,0.00014547,2]
[401368654,1768160168048,-150.0,0.00014547,2]
[401368655,1768160168074,-300.0,0.00014547,2]
[401368656,1768160168097,-304.01996233,0.00014548,2]
[401368657,1768160169581,-152.68088658,0.00014548,2]
[401368658,1768160403005,283.29,0.00027397,120]
[401368665,1768160408794,-300.0,0.00014547,2]
[401368666,1768160408820,-1200.0,0.00014547,2]
[401368667,1768160408846,-270.0,0.00014547,2]
[401368668,1768160408874,-300.0,0.00014547,2]
[401368669,1768160408900,-195.0,0.00014547,2]
[401368670,1768160408927,-366.48089369,0.00014547,2]
[401368671,1768160408953,-300.0,0.00014548,2]
[401368672,1768160408978,-1000.0,0.00014548,2]
[401368673,1768160409002,-6154.1931,0.00014548,2]
[401368674,1768160409028,-13559.46862316,0.00014549,2]
[401368675,1768160409052,-300.0,0.00014549,2]
[401368676,1768160409079,-371.10670881,0.00014549,2]
[401368677,1768160409104,-195.0,0.00014555,2]
[401368678,1768160409129,-1852.42,0.00014557,2]
[401368679,1768160409155,-300.0,0.00014576,2]
[401368680,1768160409184,-300.0,0.00014576,2]
[401368681,1768160409210,-291.02320252,0.00014576,2]
[401368682,1768160409236,-500.0,0.00014587,2]
[401368683,1768160409260,-164.73,0.00014638,2]
[401368684,1768160409285,-164.73,0.00014638,2]
[401368685,1768160409310,-164.73,0.00014638,2]
[401368686,1768160409334,-164.73,0.00014638,2]
[401368687,1768160409358,-164.73,0.00014638,2]
[401368688,1768160409383,-921.65747182,0.00014638,2]
[401368710,1768160438707,-151.0,0.00014639,2]
[401368711,1768160438736,-151.0,0.00014639,2]
[401368712,1768160438763,-151.0,0.00014639,2]
[401368713,1768160438789,-151.0,0.00014639,2]
[401368714,1768160438815,-151.0,0.00014639,2]
[401368715,1768160438842,-151.0,0.00014639,2]
[401368716,1768160438868,-151.0,0.00014639,2]
[401368717,1768160438895,-151.0,0.00014639,2]
[401368718,1768160438922,-151.0,0.00014639,2]
[401368719,1768160438950,-200.0,0.00014639,2]
[401368720,1768160438977,-200.0,0.00014639,2]
[401368721,1768160439004,-500.0,0.00014639,2]
[401368722,1768160439032,-150.0,0.00014643,2]
[401368723,1768160439058,-1805.073,0.00014643,2]
[401368724,1768160439083,-173.375,0.00014643,2]
[401368725,1768160439115,-167.73428703,0.00014644,2]
[401368726,1768160439144,-500.0,0.00014644,2]
[401368727,1768160439172,-500.0,0.00014644,2]
[401368728,1768160439201,-344.38060986,0.00014644,2]
[401368729,1768160439226,-500.0,0.00014644,2]
[401368730,1768160439253,-500.0,0.00014644,2]
[401368731,1768160439283,-500.0,0.00014644,2]
[401368732,1768160439309,-608.85556046,0.00014644,2]
[401368733,1768160439340,-500.0,0.00014644,2]
[401368734,1768160439370,-500.0,0.00014644,2]
[401368735,1768160439400,-500.0,0.00014644,2]
[401368736,1768160439431,-500.0,0.00014644,2]
[401368737,1768160439463,-500.0,0.00014644,2]
[401368738,1768160439493,-500.0,0.00014644,2]
[401368739,1768160439525,-500.0,0.00014644,2]
[401368740,1768160439559,-500.0,0.00014644,2]
[401368741,1768160439589,-500.0,0.00014644,2]
[401368742,1768160439620,-500.0,0.00014644,2]
[401368743,1768160439650,-500.0,0.00014644,2]
[401368744,1768160439680,-500.0,0.00014644,2]
[401368745,1768160439709,-500.0,0.00014644,2]
[401368746,1768160439738,-500.0,0.00014644,2]
[401368747,1768160439768,-500.0,0.00014644,2]
[401368748,1768160439803,-500.0,0.00014644,2]
[401368749,1768160439833,-500.0,0.00014644,2]
[401368750,1768160439862,-500.0,0.00014644,2]
[401368751,1768160439892,-431.1601168,0.00014644,2]
[401368752,1768160439922,-500.0,0.00014644,2]
[401368753,1768160439951,-500.0,0.00014644,2]
[401368754,1768160439979,-500.0,0.00014644,2]
[401368755,1768160440007,-500.0,0.00014644,2]
[401368756,1768160440036,-500.0,0.00014644,2]
[401368757,1768160440068,-500.0,0.00014644,2]
[401368758,1768160440098,-500.0,0.00014644,2]
[401368759,1768160440127,-500.0,0.00014644,2]
[401368760,1768160440558,-500.0,0.00014644,2]
[401368761,1768160440589,-500.0,0.00014644,2]
[401368762,1768160440617,-500.0,0.00014644,2]
[401368763,1768160440645,-500.0,0.00014644,2]
[401368764,1768160440674,-500.0,0.00014644,2]
[401368765,1768160440701,-500.0,0.00014644,2]
[401368766,1768160440728,-500.0,0.00014644,2]
[401368767,1768160440760,-500.0,0.00014644,2]
[401368768,1768160440788,-500.0,0.00014644,2]
[401368769,1768160440817,-500.0,0.00014644,2]
[401368770,1768160440845,-500.0,0.00014644,2]
[401368771,1768160440875,-500.0,0.00014644,2]
[401368772,1768160440903,-500.0,0.00014644,2]
[401368773,1768160440934,-500.0,0.00014644,2]
[401368774,1768160440963,-500.0,0.00014644,2]
[401368775,1768160440993,-550.0,0.00014644,2]
[401368776,1768160441023,-500.0,0.00014644,2]
[401368777,1768160441052,-500.0,0.00014644,2]